[Event "*** SCC Grand Prix: Titled Tuesday Blitz"]
[Site "Chess.com"]
[Date "2020.07.21"]
[Round "4"]
[White "ChessWarrior7197"]
[Black "bascheyaro"]
[Result "1-0"]
[WhiteElo "2877"]
[BlackElo "2721"]
[TimeControl "180+1"]
[EndTime "10:38:14 PDT"]
[Termination "ChessWarrior7197 won by resignation"]

1. e4 {[%clk 0:03:00.9]} 1... e6 {[%clk 0:03:00]} 2. d4 {[%clk 0:03:00.6]} 2...
d5 {[%clk 0:03:00.5]} 3. Nc3 {[%clk 0:03:01.2]} 3... Bb4 {[%clk 0:03:00.7]} 4.
Ne2 {[%clk 0:03:01.4]} 4... Nf6 {[%clk 0:03:00.4]} 5. a3 {[%clk 0:03:00.3]} 5...
Bxc3+ {[%clk 0:02:59.8]} 6. Nxc3 {[%clk 0:03:01.2]} 6... dxe4 {[%clk 0:02:59.1]}
7. Bg5 {[%clk 0:03:00.8]} 7... Nbd7 {[%clk 0:02:59.6]} 8. Nxe4 {[%clk
0:02:59.9]} 8... h6 {[%clk 0:03:00.1]} 9. Bh4 {[%clk 0:02:58.8]} 9... O-O {[%clk
0:02:59.5]} 10. Qd3 {[%clk 0:02:55.2]} 10... b6 {[%clk 0:02:58.1]} 11. O-O-O
{[%clk 0:02:54.2]} 11... Bb7 {[%clk 0:02:56.1]} 12. Nxf6+ {[%clk 0:02:54.5]}
12... Nxf6 {[%clk 0:02:56.2]} 13. Rg1 {[%clk 0:02:54.3]} 13... Qd5 {[%clk
0:02:45.4]} 14. Bxf6 {[%clk 0:02:54]} 14... gxf6 {[%clk 0:02:45.5]} 15. c4
{[%clk 0:02:53.5]} 15... Qg5+ {[%clk 0:02:44.8]} 16. Kb1 {[%clk 0:02:49.9]}
16... c5 {[%clk 0:02:41.3]} 17. Be2 {[%clk 0:02:21.4]} 17... Rad8 {[%clk
0:02:39.6]} 18. d5 {[%clk 0:02:15.5]} 18... exd5 {[%clk 0:02:38.7]} 19. Bf3
{[%clk 0:02:15.9]} 19... dxc4 {[%clk 0:02:35.8]} 20. Qxd8 {[%clk 0:02:15.1]}
20... Qf5+ {[%clk 0:02:01.8]} 21. Kc1 {[%clk 0:02:12.1]} 21... Rxd8 {[%clk
0:02:00.5]} 22. Rxd8+ {[%clk 0:02:11.7]} 22... Kg7 {[%clk 0:02:01.1]} 23. Bxb7
{[%clk 0:02:12.2]} 23... Qxf2 {[%clk 0:01:53.4]} 24. Rgd1 {[%clk 0:02:11.8]}
24... c3 {[%clk 0:01:52.4]} 25. bxc3 {[%clk 0:02:07.1]} 25... Qa2 {[%clk
0:01:52.4]} 26. R1d3 {[%clk 0:01:53.8]} 26... Qa1+ {[%clk 0:01:52.3]} 27. Kd2
{[%clk 0:01:52.3]} 27... Qb2+ {[%clk 0:01:52.2]} 28. Ke1 {[%clk 0:01:52.8]}
28... Qc1+ {[%clk 0:01:51.5]} 29. Ke2 {[%clk 0:01:53.3]} 29... Qb2+ {[%clk
0:01:51.6]} 30. Kf3 {[%clk 0:01:49.9]} 30... Qxa3 {[%clk 0:01:51.5]} 31. Kf4
{[%clk 0:01:49.7]} 31... Qc1+ {[%clk 0:01:51.3]} 32. Ke4 {[%clk 0:01:39.1]}
32... Qc2 {[%clk 0:01:45.4]} 33. Kf3 {[%clk 0:01:34.9]} 33... c4 {[%clk
0:01:39.1]} 34. Re3 {[%clk 0:01:34.6]} 34... Qf5+ {[%clk 0:01:22.5]} 35. Ke2
{[%clk 0:01:32.9]} 35... Qc2+ {[%clk 0:01:22.4]} 36. Rd2 {[%clk 0:01:32.6]}
36... Qf5 {[%clk 0:01:14.9]} 37. Rg3+ {[%clk 0:01:25.9]} 37... Kf8 {[%clk
0:01:15.1]} 38. Rd8+ {[%clk 0:01:22.3]} 38... Ke7 {[%clk 0:01:15.3]} 39. Rd4
{[%clk 0:01:22.6]} 39... Qc2+ {[%clk 0:01:11.6]} 40. Rd2 {[%clk 0:01:22.4]}
40... Qb1 {[%clk 0:00:56.4]} 41. Re3+ {[%clk 0:01:19.8]} 41... Kf8 {[%clk
0:00:56.7]} 42. Rd8+ {[%clk 0:01:19.6]} 42... Kg7 {[%clk 0:00:57.2]} 43. Rg3+
{[%clk 0:01:17.6]} 43... Kh7 {[%clk 0:00:57]} 44. h4 {[%clk 0:01:01.1]} 44... f5
{[%clk 0:00:53]} 45. Rdg8 {[%clk 0:01:00.7]} 45... Qc2+ {[%clk 0:00:50.9]} 46.
Kf1 {[%clk 0:00:59.8]} 46... Qc1+ {[%clk 0:00:28.4]} 47. Kf2 {[%clk 0:00:59.3]}
47... h5 {[%clk 0:00:25.5]} 48. R8g5 {[%clk 0:00:56.3]} 48... Qf4+ {[%clk
0:00:23.6]} 49. Kg1 {[%clk 0:00:55.8]} 49... Qxh4 {[%clk 0:00:23.8]} 50. Bf3
{[%clk 0:00:56.1]} 1-0

[Event "*** SCC Grand Prix: Titled Tuesday Blitz"]
[Site "Chess.com"]
[Date "2020.07.21"]
[Round "4"]
[White "Fandorine"]
[Black "Borsuk_Konstantin"]
[Result "1-0"]
[WhiteElo "2929"]
[BlackElo "2564"]
[TimeControl "180+1"]
[EndTime "10:38:15 PDT"]
[Termination "Fandorine won on time"]

1. e4 {[%clk 0:03:00.9]} 1... e6 {[%clk 0:02:58.4]} 2. d4 {[%clk 0:02:58.2]}
2... d5 {[%clk 0:02:58.5]} 3. exd5 {[%clk 0:02:59.1]} 3... exd5 {[%clk
0:02:57.6]} 4. Nf3 {[%clk 0:03:00]} 4... Bd6 {[%clk 0:02:55.1]} 5. Bd3 {[%clk
0:02:59.1]} 5... Ne7 {[%clk 0:02:51.8]} 6. O-O {[%clk 0:02:57.7]} 6... f6 {[%clk
0:02:43.3]} 7. c4 {[%clk 0:02:51.8]} 7... c6 {[%clk 0:02:41.1]} 8. Nc3 {[%clk
0:02:49.4]} 8... Be6 {[%clk 0:02:36]} 9. Re1 {[%clk 0:02:49]} 9... dxc4 {[%clk
0:02:27]} 10. Rxe6 {[%clk 0:02:38.2]} 10... cxd3 {[%clk 0:02:26.2]} 11. Qxd3
{[%clk 0:02:16.2]} 11... O-O {[%clk 0:02:19.9]} 12. Ne4 {[%clk 0:02:12.7]} 12...
Bc7 {[%clk 0:02:17.4]} 13. Qb3 {[%clk 0:02:12.2]} 13... Nd5 {[%clk 0:02:16]} 14.
Nc3 {[%clk 0:01:52.6]} 14... Bb6 {[%clk 0:01:53.3]} 15. a4 {[%clk 0:01:42]}
15... Qd7 {[%clk 0:01:49.2]} 16. Re1 {[%clk 0:01:41.7]} 16... Na6 {[%clk
0:01:39]} 17. a5 {[%clk 0:01:41.2]} 17... Bd8 {[%clk 0:01:38.5]} 18. Nxd5 {[%clk
0:01:35.6]} 18... cxd5 {[%clk 0:01:27.4]} 19. Nd2 {[%clk 0:01:28.7]} 19... Rc8
{[%clk 0:01:16.1]} 20. Nf1 {[%clk 0:01:27.6]} 20... Be7 {[%clk 0:01:04.1]} 21.
Ne3 {[%clk 0:01:22.2]} 21... Rfd8 {[%clk 0:00:55.6]} 22. Bd2 {[%clk 0:01:22.6]}
22... Bf8 {[%clk 0:00:48.5]} 23. Bc3 {[%clk 0:01:22.3]} 23... Nb8 {[%clk
0:00:47]} 24. h3 {[%clk 0:01:17.8]} 24... a6 {[%clk 0:00:45.2]} 25. Qd1 {[%clk
0:01:13.7]} 25... Nc6 {[%clk 0:00:38.7]} 26. Qh5 {[%clk 0:01:13.2]} 26... g6
{[%clk 0:00:36.6]} 27. Qf3 {[%clk 0:01:12.7]} 27... Kg7 {[%clk 0:00:37]} 28. Ng4
{[%clk 0:01:10.4]} 28... Qf7 {[%clk 0:00:33.9]} 29. h4 {[%clk 0:01:02.7]} 29...
h5 {[%clk 0:00:33.2]} 30. Ne3 {[%clk 0:01:03.1]} 30... Bb4 {[%clk 0:00:27.8]}
31. g3 {[%clk 0:01:00.6]} 31... Bxc3 {[%clk 0:00:27.6]} 32. bxc3 {[%clk
0:01:01.5]} 32... Na7 {[%clk 0:00:27.8]} 33. Ng2 {[%clk 0:00:58.5]} 33... Nb5
{[%clk 0:00:27.9]} 34. Re3 {[%clk 0:00:59]} 34... Nd6 {[%clk 0:00:18.3]} 35. Nf4
{[%clk 0:00:53.9]} 35... Ne4 {[%clk 0:00:15.6]} 36. Nxd5 {[%clk 0:00:45.6]}
36... Qxd5 {[%clk 0:00:15.4]} 37. Rxe4 {[%clk 0:00:45.8]} 37... Rc7 {[%clk
0:00:14.1]} 38. Rae1 {[%clk 0:00:44.5]} 38... Kf7 {[%clk 0:00:13]} 39. Qe3
{[%clk 0:00:42.7]} 39... Rdd7 {[%clk 0:00:12]} 40. Qh6 {[%clk 0:00:42.3]} 1-0

[Event "*** SCC Grand Prix: Titled Tuesday Blitz"]
[Site "Chess.com"]
[Date "2020.07.21"]
[Round "4"]
[White "Virgo15"]
[Black "maciejos95"]
[Result "1-0"]
[WhiteElo "2688"]
[BlackElo "2484"]
[TimeControl "180+1"]
[EndTime "10:38:16 PDT"]
[Termination "Virgo15 won by resignation"]

1. d4 {[%clk 0:03:00.9]} 1... d5 {[%clk 0:02:58.3]} 2. Nf3 {[%clk 0:03:00.4]}
2... Nf6 {[%clk 0:02:57.9]} 3. Bf4 {[%clk 0:03:00.7]} 3... c6 {[%clk 0:02:50]}
4. e3 {[%clk 0:03:00.5]} 4... Bg4 {[%clk 0:02:47.4]} 5. c4 {[%clk 0:03:00.1]}
5... e6 {[%clk 0:02:47.5]} 6. Qb3 {[%clk 0:02:59.3]} 6... Qb6 {[%clk 0:02:46.6]}
7. c5 {[%clk 0:02:57.1]} 7... Qxb3 {[%clk 0:02:45]} 8. axb3 {[%clk 0:02:58]}
8... Bxf3 {[%clk 0:02:37.1]} 9. gxf3 {[%clk 0:02:58.9]} 9... Nbd7 {[%clk
0:02:37.1]} 10. b4 {[%clk 0:02:58.9]} 10... Nh5 {[%clk 0:02:25.3]} 11. Bg3
{[%clk 0:02:45.5]} 11... Nxg3 {[%clk 0:02:24.2]} 12. hxg3 {[%clk 0:02:46.4]}
12... e5 {[%clk 0:02:23]} 13. b5 {[%clk 0:02:45.2]} 13... exd4 {[%clk
0:01:57.8]} 14. exd4 {[%clk 0:02:43.9]} 14... Be7 {[%clk 0:01:57.7]} 15. Nd2
{[%clk 0:02:14]} 15... Bf6 {[%clk 0:01:54.1]} 16. Nb3 {[%clk 0:02:13.8]} 16...
O-O {[%clk 0:01:49.7]} 17. Bd3 {[%clk 0:02:13.7]} 17... g6 {[%clk 0:01:44.9]}
18. Kd2 {[%clk 0:02:13.7]} 18... Rfc8 {[%clk 0:01:33.5]} 19. f4 {[%clk
0:02:03.1]} 19... Nf8 {[%clk 0:01:32.4]} 20. f5 {[%clk 0:02:01.6]} 20... cxb5
{[%clk 0:01:01.1]} 21. fxg6 {[%clk 0:01:52.9]} 21... hxg6 {[%clk 0:00:59.3]} 22.
Bxb5 {[%clk 0:01:47.2]} 22... Ne6 {[%clk 0:00:59.4]} 23. Bd7 {[%clk 0:01:46]}
23... Nxd4 {[%clk 0:00:34.3]} 24. Nxd4 {[%clk 0:01:44.6]} 24... Rc7 {[%clk
0:00:28.4]} 25. Nb5 {[%clk 0:01:09.1]} 25... Rxd7 {[%clk 0:00:27.8]} 26. Ra2
{[%clk 0:01:04.1]} 26... a6 {[%clk 0:00:26.6]} 27. b4 {[%clk 0:01:01]} 27... Rc8
{[%clk 0:00:23.5]} 28. Nd6 {[%clk 0:00:59.8]} 28... Rc6 {[%clk 0:00:19.4]} 29.
Re1 {[%clk 0:00:56.4]} 29... b6 {[%clk 0:00:17.6]} 30. Rxa6 {[%clk 0:00:49.6]}
30... Rdxd6 {[%clk 0:00:16.6]} 31. Re8+ {[%clk 0:00:48.4]} 31... Kg7 {[%clk
0:00:16.9]} 32. cxd6 {[%clk 0:00:48.6]} 32... Rxd6 {[%clk 0:00:15.8]} 33. b5
{[%clk 0:00:47.5]} 33... Bd4 {[%clk 0:00:14.7]} 34. f4 {[%clk 0:00:40.8]} 34...
Kf6 {[%clk 0:00:14.4]} 35. Rc8 {[%clk 0:00:40.5]} 35... Kf5 {[%clk 0:00:13.3]}
36. Kd3 {[%clk 0:00:40.1]} 36... Bf2 {[%clk 0:00:12.8]} 37. Rc6 {[%clk
0:00:39.9]} 37... Rd7 {[%clk 0:00:13]} 38. Ke2 {[%clk 0:00:36.6]} 38... Bd4
{[%clk 0:00:12.4]} 39. Kf3 {[%clk 0:00:36.6]} 1-0

[Event "*** SCC Grand Prix: Titled Tuesday Blitz"]
[Site "Chess.com"]
[Date "2020.07.21"]
[Round "4"]
[White "Agibileg"]
[Black "Karina_Ivanova"]
[Result "1-0"]
[WhiteElo "2408"]
[BlackElo "2184"]
[TimeControl "180+1"]
[EndTime "10:38:16 PDT"]
[Termination "Agibileg won by resignation"]

1. d4 {[%clk 0:02:59.7]} 1... Nf6 {[%clk 0:02:48.7]} 2. c4 {[%clk 0:03:00.3]}
2... e6 {[%clk 0:02:47.1]} 3. Nc3 {[%clk 0:02:59.5]} 3... Bb4 {[%clk 0:02:43.8]}
4. f3 {[%clk 0:03:00]} 4... c5 {[%clk 0:02:43.4]} 5. d5 {[%clk 0:02:59.8]} 5...
d6 {[%clk 0:02:42.2]} 6. e4 {[%clk 0:03:00.3]} 6... e5 {[%clk 0:02:40.9]} 7. Bd3
{[%clk 0:02:58.6]} 7... O-O {[%clk 0:02:39.8]} 8. Ne2 {[%clk 0:02:59.3]} 8...
Nbd7 {[%clk 0:02:38.6]} 9. O-O {[%clk 0:02:58.9]} 9... Re8 {[%clk 0:02:37.5]}
10. Ng3 {[%clk 0:02:55.4]} 10... Bxc3 {[%clk 0:02:32.3]} 11. bxc3 {[%clk
0:02:55.5]} 11... Nf8 {[%clk 0:02:33.2]} 12. a4 {[%clk 0:02:44.8]} 12... b6
{[%clk 0:02:29.2]} 13. a5 {[%clk 0:02:44.7]} 13... Ng6 {[%clk 0:02:26.9]} 14.
axb6 {[%clk 0:02:43.1]} 14... Qxb6 {[%clk 0:02:26.3]} 15. Qc2 {[%clk 0:02:38.5]}
15... Bd7 {[%clk 0:02:20.4]} 16. Bg5 {[%clk 0:02:38.8]} 16... a5 {[%clk
0:02:13.8]} 17. Bxf6 {[%clk 0:02:37.3]} 17... gxf6 {[%clk 0:02:13]} 18. Nh5
{[%clk 0:02:33.2]} 18... Qd8 {[%clk 0:02:12.1]} 19. Qd2 {[%clk 0:02:32.9]} 19...
Kh8 {[%clk 0:02:06.7]} 20. Qh6 {[%clk 0:02:32.8]} 20... Rg8 {[%clk 0:02:05.6]}
21. Rfb1 {[%clk 0:02:32.9]} 21... a4 {[%clk 0:01:39.4]} 22. Rb7 {[%clk
0:02:31.7]} 22... Nf8 {[%clk 0:01:30.5]} 23. Nxf6 {[%clk 0:02:30.2]} 23... Rg6
{[%clk 0:01:26.8]} 24. Rxd7 {[%clk 0:02:22.6]} 24... Rxh6 {[%clk 0:01:24.9]} 25.
Rxd8 {[%clk 0:02:22.5]} 25... Rxd8 {[%clk 0:01:23.9]} 26. Ng4 {[%clk 0:02:23.4]}
26... Rg6 {[%clk 0:01:18.9]} 27. Rxa4 {[%clk 0:02:24.3]} 27... Rb8 {[%clk
0:01:13.6]} 28. h4 {[%clk 0:02:17.3]} 28... h5 {[%clk 0:01:12.2]} 29. Ne3 {[%clk
0:02:16.8]} 29... Rb2 {[%clk 0:01:08.7]} 30. Ra8 {[%clk 0:02:15.7]} 30... Kg8
{[%clk 0:01:04.2]} 31. Bf1 {[%clk 0:02:14]} 31... Rb6 {[%clk 0:00:40.4]} 32. Nf5
{[%clk 0:02:13.9]} 32... Rf6 {[%clk 0:00:37.5]} 33. Ng3 {[%clk 0:02:12.7]} 33...
Rh6 {[%clk 0:00:36.5]} 34. Nf5 {[%clk 0:02:10.9]} 34... Rf6 {[%clk 0:00:36.2]}
35. Kh2 {[%clk 0:02:09.1]} 35... Rb2 {[%clk 0:00:28.9]} 36. Rd8 {[%clk
0:02:08.2]} 36... Rb6 {[%clk 0:00:24.6]} 37. Bd3 {[%clk 0:02:05.5]} 37... Rxf5
{[%clk 0:00:17.3]} 38. exf5 {[%clk 0:02:05.5]} 38... f6 {[%clk 0:00:17.6]} 39.
g4 {[%clk 0:02:01.2]} 39... hxg4 {[%clk 0:00:16.2]} 40. fxg4 {[%clk 0:02:02.1]}
40... Kg7 {[%clk 0:00:16.3]} 41. g5 {[%clk 0:02:00.8]} 41... Nh7 {[%clk
0:00:15.5]} 42. Rd7+ {[%clk 0:02:00.5]} 42... Kg8 {[%clk 0:00:15.2]} 43. g6
{[%clk 0:01:58.2]} 43... Nf8 {[%clk 0:00:15.2]} 44. Rf7 {[%clk 0:01:58.3]} 44...
Rb3 {[%clk 0:00:13.6]} 45. Rxf6 {[%clk 0:01:54.7]} 45... Rxc3 {[%clk 0:00:13.5]}
46. Bf1 {[%clk 0:01:55.2]} 46... Rf3 {[%clk 0:00:11.1]} 47. Kg2 {[%clk
0:01:54.6]} 47... Rf4 {[%clk 0:00:10.8]} 48. h5 {[%clk 0:01:55.3]} 48... Rh4
{[%clk 0:00:10.4]} 49. Be2 {[%clk 0:01:50.7]} 49... Re4 {[%clk 0:00:10]} 50. Bf3
{[%clk 0:01:50.9]} 50... Rxc4 {[%clk 0:00:08.6]} 51. h6 {[%clk 0:01:50.5]} 51...
Rh4 {[%clk 0:00:08.1]} 52. g7 {[%clk 0:01:49.7]} 52... Nh7 {[%clk 0:00:06.9]}
53. Rxd6 {[%clk 0:01:50.1]} 53... Rg4+ {[%clk 0:00:05.2]} 54. Bxg4 {[%clk
0:01:41.7]} 1-0

[Event "*** SCC Grand Prix: Titled Tuesday Blitz"]
[Site "Chess.com"]
[Date "2020.07.21"]
[Round "4"]
[White "CzechmVIII"]
[Black "Khazieva_Elza"]
[Result "0-1"]
[WhiteElo "2186"]
[BlackElo "2357"]
[TimeControl "180+1"]
[EndTime "10:38:16 PDT"]
[Termination "Khazieva_Elza won on time"]

1. e4 {[%clk 0:03:00.9]} 1... c5 {[%clk 0:02:59.1]} 2. Nf3 {[%clk 0:03:00.8]}
2... d6 {[%clk 0:02:59.2]} 3. d4 {[%clk 0:02:58.5]} 3... cxd4 {[%clk 0:03:00.1]}
4. Nxd4 {[%clk 0:02:59]} 4... Nf6 {[%clk 0:03:00.5]} 5. Nc3 {[%clk 0:02:59.5]}
5... Nc6 {[%clk 0:03:00.8]} 6. Bc4 {[%clk 0:02:58.2]} 6... e5 {[%clk 0:02:57.6]}
7. Nf5 {[%clk 0:02:57.3]} 7... Bxf5 {[%clk 0:02:55.3]} 8. exf5 {[%clk
0:02:58.2]} 8... Qd7 {[%clk 0:02:55.5]} 9. O-O {[%clk 0:02:57]} 9... Qxf5 {[%clk
0:02:50.5]} 10. f4 {[%clk 0:02:57.1]} 10... Qg4 {[%clk 0:02:41.3]} 11. Be2
{[%clk 0:02:23.2]} 11... Qd7 {[%clk 0:02:39.2]} 12. Nd5 {[%clk 0:02:19.3]} 12...
Be7 {[%clk 0:02:28.8]} 13. c3 {[%clk 0:02:14.3]} 13... O-O {[%clk 0:02:23.4]}
14. fxe5 {[%clk 0:02:05.1]} 14... Nxe5 {[%clk 0:02:19.3]} 15. Nxe7+ {[%clk
0:02:04.9]} 15... Qxe7 {[%clk 0:02:19]} 16. Bg5 {[%clk 0:02:03.8]} 16... Ned7
{[%clk 0:02:16.9]} 17. Bg4 {[%clk 0:01:55.7]} 17... Qe5 {[%clk 0:02:03.8]} 18.
Rf5 {[%clk 0:01:32.7]} 18... Qe4 {[%clk 0:01:50.5]} 19. Rf4 {[%clk 0:00:54.2]}
19... Qg6 {[%clk 0:01:43.1]} 20. h4 {[%clk 0:00:42.2]} 20... Nxg4 {[%clk
0:01:30]} 21. Qxg4 {[%clk 0:00:26.2]} 21... Ne5 {[%clk 0:01:26.7]} 22. Qf5
{[%clk 0:00:18.3]} 22... h6 {[%clk 0:01:17.6]} 23. Be7 {[%clk 0:00:13.3]} 23...
Rfe8 {[%clk 0:01:12.1]} 24. Bxd6 {[%clk 0:00:08.7]} 24... Qxd6 {[%clk
0:01:09.6]} 25. Raf1 {[%clk 0:00:04.9]} 25... Re7 {[%clk 0:00:58.9]} 26. Qh3
{[%clk 0:00:03.4]} 26... Qb6+ {[%clk 0:00:51.3]} 27. Kh1 {[%clk 0:00:03.6]}
27... Rd8 {[%clk 0:00:47.9]} 28. Re4 {[%clk 0:00:03.6]} 28... Ng6 {[%clk
0:00:44.5]} 29. Rxe7 {[%clk 0:00:02.9]} 29... Nxe7 {[%clk 0:00:45.4]} 30. Qf3
{[%clk 0:00:02.2]} 30... Rf8 {[%clk 0:00:32]} 31. Qe4 {[%clk 0:00:02.5]} 31...
Nc6 {[%clk 0:00:24.7]} 32. h5 {[%clk 0:00:02.9]} 32... Qxb2 {[%clk 0:00:24]} 33.
Qd5 {[%clk 0:00:01.6]} 33... Qxc3 {[%clk 0:00:22.9]} 0-1

[Event "*** SCC Grand Prix: Titled Tuesday Blitz"]
[Site "Chess.com"]
[Date "2020.07.21"]
[Round "4"]
[White "HanSchut"]
[Black "PlotnikovPavel"]
[Result "0-1"]
[WhiteElo "2309"]
[BlackElo "2460"]
[TimeControl "180+1"]
[EndTime "10:38:18 PDT"]
[Termination "PlotnikovPavel won on time"]

1. e4 {[%clk 0:03:00.9]} 1... e6 {[%clk 0:03:00.1]} 2. d4 {[%clk 0:03:00.6]}
2... d5 {[%clk 0:03:00.5]} 3. Nd2 {[%clk 0:03:00.7]} 3... Be7 {[%clk 0:03:00.5]}
4. f4 {[%clk 0:02:54]} 4... dxe4 {[%clk 0:02:56.9]} 5. Nxe4 {[%clk 0:02:53.8]}
5... Nd7 {[%clk 0:02:57.2]} 6. Nf3 {[%clk 0:02:53.3]} 6... Ngf6 {[%clk
0:02:56.6]} 7. Bd3 {[%clk 0:02:53.6]} 7... b6 {[%clk 0:02:56]} 8. Qe2 {[%clk
0:02:54.5]} 8... Bb7 {[%clk 0:02:56.2]} 9. O-O {[%clk 0:02:50.7]} 9... O-O
{[%clk 0:02:56]} 10. c3 {[%clk 0:02:51]} 10... c5 {[%clk 0:02:55.5]} 11. dxc5
{[%clk 0:02:48.5]} 11... Nxc5 {[%clk 0:02:55.2]} 12. Nxc5 {[%clk 0:02:45.6]}
12... Bxc5+ {[%clk 0:02:56.1]} 13. Kh1 {[%clk 0:02:46.1]} 13... a5 {[%clk
0:02:51.4]} 14. Be3 {[%clk 0:02:41]} 14... Qe7 {[%clk 0:02:50]} 15. Rad1 {[%clk
0:02:34.9]} 15... Rfd8 {[%clk 0:02:49.4]} 16. Bb1 {[%clk 0:02:16.9]} 16... Rxd1
{[%clk 0:02:42.4]} 17. Rxd1 {[%clk 0:02:15.4]} 17... Rd8 {[%clk 0:02:42.9]} 18.
Rxd8+ {[%clk 0:02:00]} 18... Qxd8 {[%clk 0:02:43.8]} 19. Bxc5 {[%clk 0:01:59.6]}
19... bxc5 {[%clk 0:02:44.7]} 20. f5 {[%clk 0:01:53.9]} 20... exf5 {[%clk
0:02:37.2]} 21. Bxf5 {[%clk 0:01:51.5]} 21... g6 {[%clk 0:02:37.4]} 22. Bc2
{[%clk 0:01:43.3]} 22... Qe8 {[%clk 0:02:24.4]} 23. Qxe8+ {[%clk 0:01:41.4]}
23... Nxe8 {[%clk 0:02:25.3]} 24. Kg1 {[%clk 0:01:32.4]} 24... Kf8 {[%clk
0:02:24.7]} 25. Kf2 {[%clk 0:01:32.7]} 25... Ke7 {[%clk 0:02:24.9]} 26. Ne5
{[%clk 0:01:32.2]} 26... f6 {[%clk 0:02:20.3]} 27. Nc4 {[%clk 0:01:31.7]} 27...
Nd6 {[%clk 0:02:18.2]} 28. Nxa5 {[%clk 0:01:28.5]} 28... Bd5 {[%clk 0:02:18.1]}
29. Nb3 {[%clk 0:01:15.3]} 29... Nb7 {[%clk 0:02:13.1]} 30. g3 {[%clk
0:01:07.3]} 30... Kd6 {[%clk 0:02:13]} 31. Ke3 {[%clk 0:01:07.4]} 31... Be6
{[%clk 0:02:06.9]} 32. Nc1 {[%clk 0:00:59.4]} 32... Na5 {[%clk 0:02:05.7]} 33.
b4 {[%clk 0:00:47.8]} 33... Nc4+ {[%clk 0:02:04.6]} 34. Ke2 {[%clk 0:00:35.5]}
34... Bg4+ {[%clk 0:02:00.5]} 35. Kd3 {[%clk 0:00:31.5]} 35... Ne5+ {[%clk
0:01:59.1]} 36. Ke3 {[%clk 0:00:26.4]} 36... Be6 {[%clk 0:01:52.1]} 37. a4
{[%clk 0:00:21.6]} 37... Ng4+ {[%clk 0:01:51.1]} 38. Kd3 {[%clk 0:00:14.9]}
38... Nxh2 {[%clk 0:01:42]} 39. Bd1 {[%clk 0:00:15.2]} 39... Nf1 {[%clk
0:01:36.9]} 40. g4 {[%clk 0:00:12.9]} 40... Ng3 {[%clk 0:01:31.9]} 41. a5 {[%clk
0:00:12.3]} 41... h5 {[%clk 0:01:30.6]} 42. gxh5 {[%clk 0:00:11.7]} 42... gxh5
{[%clk 0:01:31.5]} 43. Ne2 {[%clk 0:00:10.6]} 43... h4 {[%clk 0:01:26.6]} 44.
Nxg3 {[%clk 0:00:08]} 44... hxg3 {[%clk 0:01:26.7]} 45. Bf3 {[%clk 0:00:08.5]}
45... Bd5 {[%clk 0:01:24.6]} 46. Ke3 {[%clk 0:00:05.7]} 46... f5 {[%clk
0:01:23.4]} 47. b5 {[%clk 0:00:04.1]} 47... f4+ {[%clk 0:01:18.7]} 48. Kxf4
{[%clk 0:00:02.5]} 48... g2 {[%clk 0:01:18.7]} 49. Bxg2 {[%clk 0:00:03.1]} 49...
Bxg2 {[%clk 0:01:18.5]} 50. Ke3 {[%clk 0:00:02]} 50... Bf1 {[%clk 0:01:16.9]}
0-1

[Event "*** SCC Grand Prix: Titled Tuesday Blitz"]
[Site "Chess.com"]
[Date "2020.07.21"]
[Round "4"]
[White "Larina_Marija"]
[Black "rynos0411"]
[Result "0-1"]
[WhiteElo "2116"]
[BlackElo "2395"]
[TimeControl "180+1"]
[EndTime "10:38:19 PDT"]
[Termination "rynos0411 won on time"]

1. e4 {[%clk 0:03:00]} 1... d6 {[%clk 0:02:56.4]} 2. d4 {[%clk 0:02:58.5]} 2...
Nf6 {[%clk 0:02:56.7]} 3. Nc3 {[%clk 0:02:57.4]} 3... c6 {[%clk 0:02:57.1]} 4.
a4 {[%clk 0:02:56.9]} 4... Nbd7 {[%clk 0:02:53.5]} 5. Bc4 {[%clk 0:02:56]} 5...
e5 {[%clk 0:02:52.4]} 6. Nf3 {[%clk 0:02:54.5]} 6... Be7 {[%clk 0:02:51.9]} 7.
dxe5 {[%clk 0:02:47.3]} 7... dxe5 {[%clk 0:02:51.3]} 8. Ng5 {[%clk 0:02:46.9]}
8... O-O {[%clk 0:02:50.9]} 9. Bxf7+ {[%clk 0:02:33.7]} 9... Rxf7 {[%clk
0:02:51.8]} 10. Ne6 {[%clk 0:02:34.1]} 10... Qb6 {[%clk 0:02:45.1]} 11. a5
{[%clk 0:02:33.8]} 11... Qb4 {[%clk 0:02:39.2]} 12. Ra4 {[%clk 0:02:29.6]} 12...
Qd6 {[%clk 0:02:38.6]} 13. Ng5 {[%clk 0:01:52.4]} 13... Qxd1+ {[%clk 0:02:36.4]}
14. Nxd1 {[%clk 0:01:53.3]} 14... Rf8 {[%clk 0:02:35.4]} 15. Ne6 {[%clk
0:01:52.3]} 15... Nc5 {[%clk 0:02:33.7]} 16. Nxc5 {[%clk 0:01:37.1]} 16... Bxc5
{[%clk 0:02:32.7]} 17. O-O {[%clk 0:01:37.4]} 17... Be6 {[%clk 0:02:28.5]} 18.
h3 {[%clk 0:01:34.8]} 18... Rad8 {[%clk 0:02:26.7]} 19. a6 {[%clk 0:01:31]}
19... b5 {[%clk 0:02:25.1]} 20. Ra1 {[%clk 0:01:29.3]} 20... Nxe4 {[%clk
0:02:24.3]} 21. Ne3 {[%clk 0:01:27.6]} 21... h6 {[%clk 0:02:06.4]} 22. c3 {[%clk
0:01:23]} 22... Bb6 {[%clk 0:02:03.7]} 23. Ra3 {[%clk 0:01:07.3]} 23... Rd3
{[%clk 0:02:02.4]} 24. Nd1 {[%clk 0:00:29.6]} 24... Rfd8 {[%clk 0:01:53.2]} 25.
Ne3 {[%clk 0:00:28.9]} 25... Bd5 {[%clk 0:01:37.4]} 26. Ng4 {[%clk 0:00:21.9]}
26... Bc7 {[%clk 0:01:16.8]} 27. Be3 {[%clk 0:00:21.8]} 27... c5 {[%clk
0:01:07.1]} 28. Re1 {[%clk 0:00:15.1]} 28... h5 {[%clk 0:01:06.1]} 29. Bg5
{[%clk 0:00:09.5]} 29... hxg4 {[%clk 0:00:55]} 30. Bxd8 {[%clk 0:00:09.2]} 30...
Bxd8 {[%clk 0:00:55.9]} 31. hxg4 {[%clk 0:00:08.6]} 31... Bc7 {[%clk 0:00:56.1]}
32. f3 {[%clk 0:00:08.2]} 32... Nf6 {[%clk 0:00:52.6]} 33. Kf2 {[%clk
0:00:07.4]} 33... Rd2+ {[%clk 0:00:51.9]} 34. Re2 {[%clk 0:00:07.6]} 34... Rxe2+
{[%clk 0:00:52.1]} 35. Kxe2 {[%clk 0:00:08.5]} 35... Kf7 {[%clk 0:00:52.6]} 36.
Kd3 {[%clk 0:00:08.3]} 36... Ke6 {[%clk 0:00:52.7]} 37. g5 {[%clk 0:00:08.7]}
37... Nh5 {[%clk 0:00:51.4]} 38. Ke2 {[%clk 0:00:08.3]} 38... Nf4+ {[%clk
0:00:51.7]} 39. Kf2 {[%clk 0:00:08.5]} 39... Bb6 {[%clk 0:00:50.4]} 40. Kg3
{[%clk 0:00:08.3]} 40... Nd3 {[%clk 0:00:48.2]} 41. Ra1 {[%clk 0:00:06.6]} 41...
Nxb2 {[%clk 0:00:47.9]} 42. Rh1 {[%clk 0:00:06.3]} 42... Nd3 {[%clk 0:00:45.6]}
0-1